[Event "Titled Tuesday Blitz June 8 2021"]
[White "Petesch, Gabriel"]
[Black "Wagner, Dennis"]
[WhiteFideId "2032465"]
[BlackFideId "24650684"]
[WhiteElo "2374"]
[BlackElo "2355"]
[Result "0-1"]
[Round "08"]
[TimeControl "180+1"]
[Date "2021.06.08"]
[WhiteClock "0:00:05"]
[BlackClock "0:00:38"]

1. d4 {[%clk 0:02:57]}  Nf6 {[%clk 0:02:59]} 2. Nf3 {[%clk 0:02:57]}  d5 {[%clk 0:02:58]} 3. e3 {[%clk 0:02:54]}  e6 {[%clk 0:02:56]} 4. Bd3 {[%clk 0:02:55]}  b6 {[%clk 0:02:53]} 5. Nbd2 {[%clk 0:02:54]}  Bb7 {[%clk 0:02:54]} 6. Qe2 {[%clk 0:02:54]}  Ne4 {[%clk 0:02:53]} 7. O-O {[%clk 0:02:48]}  Bd6 {[%clk 0:02:53]} 8. b3 {[%clk 0:02:32]}  Nd7 {[%clk 0:02:44]} 9. Bb2 {[%clk 0:02:29]}  O-O {[%clk 0:02:22]} 10. Rfd1 {[%clk 0:02:20]}  f5 {[%clk 0:02:14]} 11. c4 {[%clk 0:02:12]}  Qf6 {[%clk 0:02:11]} 12. cxd5 {[%clk 0:02:08]}  exd5 {[%clk 0:02:10]} 13. Ba6 {[%clk 0:02:02]}  Bxa6 {[%clk 0:02:09]} 14. Qxa6 {[%clk 0:02:02]}  g5 {[%clk 0:02:06]} 15. Qb5 {[%clk 0:01:58]}  c6 {[%clk 0:02:04]} 16. Qa4 {[%clk 0:01:28]}  g4 {[%clk 0:01:46]} 17. Ne5 {[%clk 0:01:27]}  Bxe5 {[%clk 0:01:19]} 18. dxe5 {[%clk 0:01:28]}  Qe6 {[%clk 0:01:20]} 19. Rac1 {[%clk 0:01:09]}  Nec5 {[%clk 0:01:19]} 20. Qd4 {[%clk 0:01:02]}  Rae8 {[%clk 0:01:19]} 21. b4 {[%clk 0:00:48]}  Ne4 {[%clk 0:01:17]} 22. Nxe4 {[%clk 0:00:45]}  fxe4 {[%clk 0:01:16]} 23. b5 {[%clk 0:00:42]}  cxb5 {[%clk 0:00:55]} 24. Qxd5 {[%clk 0:00:42]}  Nc5 {[%clk 0:00:56]} 25. Ba3 {[%clk 0:00:27]}  Qxd5 {[%clk 0:00:49]} 26. Rxd5 {[%clk 0:00:27]}  Rd8 {[%clk 0:00:50]} 27. Rcd1 {[%clk 0:00:20]}  Nd3 {[%clk 0:00:50]} 28. Rxd8 {[%clk 0:00:15]}  Rxd8 {[%clk 0:00:50]} 29. e6 {[%clk 0:00:10]}  Re8 {[%clk 0:00:51]} 30. e7 {[%clk 0:00:09]}  b4 {[%clk 0:00:51]} 31. Bc1 {[%clk 0:00:08]}  Rxe7 {[%clk 0:00:51]} 32. Bd2 {[%clk 0:00:09]}  Rc7 {[%clk 0:00:50]} 33. f3 {[%clk 0:00:08]}  gxf3 {[%clk 0:00:48]} 34. gxf3 {[%clk 0:00:08]}  exf3 {[%clk 0:00:48]} 35. Be1 {[%clk 0:00:07]}  Nxe1 {[%clk 0:00:42]} 36. Rxe1 {[%clk 0:00:08]}  Rc2 {[%clk 0:00:42]} 37. Rb1 {[%clk 0:00:08]}  a5 {[%clk 0:00:38]} 38. Ra1 {[%clk 0:00:05]}  Kf7 {[%clk 0:00:38]} 0-1


[Site "https://www.chess.com"]

[Event "Titled Tuesday Blitz June 8 2021"]
[White "Przybylski, Wojciech"]
[Black "Tejedor Fuente, Enrique"]
[WhiteFideId "1117599"]
[BlackFideId "2299100"]
[WhiteElo "2317"]
[BlackElo "2535"]
[Result "0-1"]
[Round "08"]
[TimeControl "180+1"]
[Date "2021.06.08"]
[WhiteClock "0:00:14"]
[BlackClock "0:00:07"]

1. e4 {[%clk 0:03:00]}  e5 {[%clk 0:01:58]} 2. Nf3 {[%clk 0:03:00]}  Nc6 {[%clk 0:01:56]} 3. d4 {[%clk 0:02:59]}  exd4 {[%clk 0:01:56]} 4. Nxd4 {[%clk 0:03:00]}  Nf6 {[%clk 0:01:50]} 5. Nxc6 {[%clk 0:02:59]}  bxc6 {[%clk 0:01:51]} 6. e5 {[%clk 0:02:59]}  Qe7 {[%clk 0:01:39]} 7. Qe2 {[%clk 0:02:59]}  Nd5 {[%clk 0:01:38]} 8. h4 {[%clk 0:03:00]}  g6 {[%clk 0:01:33]} 9. c4 {[%clk 0:02:57]}  Ba6 {[%clk 0:01:32]} 10. Nd2 {[%clk 0:02:56]}  Bg7 {[%clk 0:01:29]} 11. Nf3 {[%clk 0:02:53]}  Qb4+ {[%clk 0:01:21]} 12. Qd2 {[%clk 0:02:39]}  Qxd2+ {[%clk 0:01:22]} 13. Bxd2 {[%clk 0:02:37]}  Nb6 {[%clk 0:01:22]} 14. b3 {[%clk 0:02:21]}  d6 {[%clk 0:01:22]} 15. Bc3 {[%clk 0:02:15]}  O-O-O {[%clk 0:01:19]} 16. O-O-O {[%clk 0:02:07]}  Nd7 {[%clk 0:01:17]} 17. Ng5 {[%clk 0:01:52]}  Bxe5 {[%clk 0:00:59]} 18. Kb2 {[%clk 0:01:23]}  Rdf8 {[%clk 0:00:49]} 19. f4 {[%clk 0:01:19]}  Bxf4 {[%clk 0:00:37]} 20. Bxh8 {[%clk 0:01:18]}  Rxh8 {[%clk 0:00:38]} 21. Nxf7 {[%clk 0:01:17]}  Rf8 {[%clk 0:00:38]} 22. Ng5 {[%clk 0:01:13]}  Be5+ {[%clk 0:00:39]} 23. Kc2 {[%clk 0:01:10]}  Rf2+ {[%clk 0:00:40]} 24. Rd2 {[%clk 0:01:10]}  Rxd2+ {[%clk 0:00:35]} 25. Kxd2 {[%clk 0:01:11]}  Nf6 {[%clk 0:00:35]} 26. Bd3 {[%clk 0:01:09]}  c5 {[%clk 0:00:31]} 27. Nf3 {[%clk 0:01:05]}  Bf4+ {[%clk 0:00:29]} 28. Ke2 {[%clk 0:01:05]}  Nh5 {[%clk 0:00:29]} 29. Rb1 {[%clk 0:00:56]}  Bb7 {[%clk 0:00:28]} 30. b4 {[%clk 0:00:53]}  cxb4 {[%clk 0:00:27]} 31. Rxb4 {[%clk 0:00:53]}  Bg3 {[%clk 0:00:26]} 32. Ke3 {[%clk 0:00:48]}  Bf4+ {[%clk 0:00:25]} 33. Kf2 {[%clk 0:00:46]}  Bg3+ {[%clk 0:00:21]} 34. Kf1 {[%clk 0:00:46]}  Nf4 {[%clk 0:00:16]} 35. Be2 {[%clk 0:00:46]}  h6 {[%clk 0:00:09]} 36. Rb3 {[%clk 0:00:44]}  Bc6 {[%clk 0:00:03]} 37. Nd4 {[%clk 0:00:44]}  Bxg2+ {[%clk 0:00:03]} 38. Kg1 {[%clk 0:00:43]}  Bxh4 {[%clk 0:00:03]} 39. Bf3 {[%clk 0:00:40]}  Bxf3 {[%clk 0:00:03]} 40. Rxf3 {[%clk 0:00:39]}  g5 {[%clk 0:00:03]} 41. Nf5 {[%clk 0:00:38]}  Be1 {[%clk 0:00:03]} 42. Nxh6 {[%clk 0:00:37]}  Kd7 {[%clk 0:00:03]} 43. Nf7 {[%clk 0:00:36]}  Ne6 {[%clk 0:00:03]} 44. Kf1 {[%clk 0:00:29]}  Bd2 {[%clk 0:00:03]} 45. Nh6 {[%clk 0:00:29]}  Bf4 {[%clk 0:00:03]} 46. Ra3 {[%clk 0:00:28]}  Kc6 {[%clk 0:00:02]} 47. Ra5 {[%clk 0:00:26]}  Kb6 {[%clk 0:00:01]} 48. Rb5+ {[%clk 0:00:26]}  Kc6 {[%clk 0:00:02]} 49. Rf5 {[%clk 0:00:25]}  Nc5 {[%clk 0:00:01]} 50. Nf7 {[%clk 0:00:24]}  Nd7 {[%clk 0:00:01]} 51. Nxg5 {[%clk 0:00:23]}  Bxg5 {[%clk 0:00:02]} 52. Rxg5 {[%clk 0:00:24]}  Ne5 {[%clk 0:00:03]} 53. Ke2 {[%clk 0:00:19]}  Nxc4 {[%clk 0:00:03]} 54. Kd3 {[%clk 0:00:20]}  Nb6 {[%clk 0:00:04]} 55. Ra5 {[%clk 0:00:18]}  Kb7 {[%clk 0:00:04]} 56. Kc3 {[%clk 0:00:17]}  c5 {[%clk 0:00:04]} 57. Kc2 {[%clk 0:00:16]}  Nd7 {[%clk 0:00:04]} 58. Rb5+ {[%clk 0:00:15]}  Nb6 {[%clk 0:00:04]} 59. a3 {[%clk 0:00:14]}  Kc6 {[%clk 0:00:04]} 60. Ra5 {[%clk 0:00:14]}  Nc8 {[%clk 0:00:05]} 61. Ra6+ {[%clk 0:00:14]}  Kb7 {[%clk 0:00:05]} 62. Ra4 {[%clk 0:00:14]}  Nb6 {[%clk 0:00:04]} 63. Rh4 {[%clk 0:00:14]}  Kc6 {[%clk 0:00:04]} 64. Kb3 {[%clk 0:00:14]}  a5 {[%clk 0:00:05]} 65. Rh5 {[%clk 0:00:14]}  a4+ {[%clk 0:00:05]} 66. Kc3 {[%clk 0:00:14]}  d5 {[%clk 0:00:05]} 67. Rh4 {[%clk 0:00:12]}  d4+ {[%clk 0:00:05]} 68. Kd3 {[%clk 0:00:12]}  Kb5 {[%clk 0:00:05]} 69. Rh8 {[%clk 0:00:11]}  Nc4 {[%clk 0:00:03]} 70. Rb8+ {[%clk 0:00:11]}  Nb6 {[%clk 0:00:04]} 71. Rb7 {[%clk 0:00:11]}  Kc6 {[%clk 0:00:04]} 72. Ra7 {[%clk 0:00:11]}  Kd5 {[%clk 0:00:03]} 73. Ra5 {[%clk 0:00:10]}  Nc4 {[%clk 0:00:03]} 74. Rxa4 {[%clk 0:00:10]}  Nb2+ {[%clk 0:00:03]} 75. Kc2 {[%clk 0:00:10]}  Nxa4 {[%clk 0:00:04]} 76. Kb3 {[%clk 0:00:10]}  Nb6 {[%clk 0:00:04]} 77. a4 {[%clk 0:00:11]}  c4+ {[%clk 0:00:05]} 78. Kb4 {[%clk 0:00:11]}  Nxa4 {[%clk 0:00:06]} 79. Ka3 {[%clk 0:00:11]}  d3 {[%clk 0:00:06]} 80. Kb4 {[%clk 0:00:12]}  d2 {[%clk 0:00:07]} 81. Ka3 {[%clk 0:00:13]}  d1=Q {[%clk 0:00:07]} 82. Ka2 {[%clk 0:00:13]}  Qb3+ {[%clk 0:00:06]} 83. Ka1 {[%clk 0:00:14]}  Qb2# {[%clk 0:00:07]} 0-1


[Site "https://www.chess.com"]

[Event "Titled Tuesday Blitz June 8 2021"]
[White "Ronka, Erik"]
[Black "Costachi, Mihnea"]
[WhiteFideId "505080"]
[BlackFideId "1217518"]
[WhiteElo "2264"]
[BlackElo "2479"]
[Result "1-0"]
[Round "08"]
[TimeControl "180+1"]
[Date "2021.06.08"]
[WhiteClock "0:00:12"]
[BlackClock "0:00:46"]

1. d4 {[%clk 0:03:00]}  a6 {[%clk 0:02:57]} 2. Nf3 {[%clk 0:02:58]}  d5 {[%clk 0:02:57]} 3. g3 {[%clk 0:02:59]}  Nf6 {[%clk 0:02:57]} 4. Bg2 {[%clk 0:02:59]}  Bf5 {[%clk 0:02:56]} 5. O-O {[%clk 0:02:59]}  e6 {[%clk 0:02:57]} 6. b3 {[%clk 0:03:00]}  Be7 {[%clk 0:02:57]} 7. c4 {[%clk 0:03:00]}  O-O {[%clk 0:02:56]} 8. Bb2 {[%clk 0:03:00]}  c6 {[%clk 0:02:55]} 9. Nc3 {[%clk 0:02:55]}  h6 {[%clk 0:02:56]} 10. Re1 {[%clk 0:02:50]}  Ne4 {[%clk 0:02:55]} 11. Nd2 {[%clk 0:02:23]}  Nxc3 {[%clk 0:02:51]} 12. Bxc3 {[%clk 0:02:24]}  b5 {[%clk 0:02:51]} 13. e4 {[%clk 0:02:20]}  dxe4 {[%clk 0:02:50]} 14. Nxe4 {[%clk 0:02:21]}  Nd7 {[%clk 0:02:50]} 15. Qe2 {[%clk 0:02:11]}  Rc8 {[%clk 0:02:48]} 16. Rad1 {[%clk 0:02:03]}  Nf6 {[%clk 0:02:48]} 17. Nc5 {[%clk 0:02:02]}  Qb6 {[%clk 0:02:40]} 18. Nd3 {[%clk 0:01:20]}  Rfd8 {[%clk 0:02:33]} 19. Ne5 {[%clk 0:01:14]}  a5 {[%clk 0:02:28]} 20. g4 {[%clk 0:01:10]}  Bh7 {[%clk 0:02:27]} 21. Nxf7 {[%clk 0:01:07]}  Rf8 {[%clk 0:02:16]} 22. Qxe6 {[%clk 0:00:55]}  Rxf7 {[%clk 0:02:16]} 23. Qxc8+ {[%clk 0:00:55]}  Bf8 {[%clk 0:02:17]} 24. h3 {[%clk 0:00:47]}  bxc4 {[%clk 0:02:15]} 25. bxc4 {[%clk 0:00:46]}  Kh8 {[%clk 0:02:02]} 26. Re2 {[%clk 0:00:40]}  h5 {[%clk 0:01:58]} 27. g5 {[%clk 0:00:34]}  Ng8 {[%clk 0:01:59]} 28. d5 {[%clk 0:00:29]}  Bc5 {[%clk 0:01:52]} 29. Re8 {[%clk 0:00:18]}  Bxf2+ {[%clk 0:01:45]} 30. Kh1 {[%clk 0:00:19]}  Qc5 {[%clk 0:01:38]} 31. g6 {[%clk 0:00:17]}  Rf5 {[%clk 0:00:49]} 32. Qxf5 {[%clk 0:00:13]}  Qxd5 {[%clk 0:00:47]} 33. cxd5 {[%clk 0:00:13]}  Bd4 {[%clk 0:00:46]} 34. Bxd4 {[%clk 0:00:12]}  c5 {[%clk 0:00:47]} 35. Qxh5 {[%clk 0:00:11]}  a4 {[%clk 0:00:46]} 36. Qxh7# {[%clk 0:00:12]} 1-0


[Site "https://www.chess.com"]

[Event "Titled Tuesday Blitz June 8 2021"]
[White "Samadov, Read"]
[Black "Ovetchkin, Roman"]
[WhiteFideId "13417444"]
[BlackFideId "4119991"]
[WhiteElo "2084"]
[BlackElo "2428"]
[Result "1-0"]
[Round "08"]
[TimeControl "180+1"]
[Date "2021.06.08"]
[WhiteClock "0:00:55"]
[BlackClock "0:00:09"]

1. d4 {[%clk 0:03:00]}  Nf6 {[%clk 0:02:58]} 2. Nf3 {[%clk 0:03:00]}  g6 {[%clk 0:02:58]} 3. c4 {[%clk 0:02:59]}  Bg7 {[%clk 0:02:59]} 4. g3 {[%clk 0:02:59]}  O-O {[%clk 0:02:58]} 5. Bg2 {[%clk 0:03:00]}  d6 {[%clk 0:02:59]} 6. O-O {[%clk 0:03:00]}  c6 {[%clk 0:02:59]} 7. Nc3 {[%clk 0:03:00]}  Bf5 {[%clk 0:02:58]} 8. Ne1 {[%clk 0:02:57]}  d5 {[%clk 0:02:56]} 9. cxd5 {[%clk 0:02:55]}  cxd5 {[%clk 0:02:56]} 10. Qb3 {[%clk 0:02:47]}  Nc6 {[%clk 0:02:45]} 11. Qxb7 {[%clk 0:02:43]}  Nxd4 {[%clk 0:02:42]} 12. e3 {[%clk 0:02:42]}  Rb8 {[%clk 0:02:35]} 13. Qxa7 {[%clk 0:02:38]}  Nc6 {[%clk 0:02:32]} 14. Qa4 {[%clk 0:02:34]}  Qd6 {[%clk 0:02:29]} 15. Nf3 {[%clk 0:02:10]}  e5 {[%clk 0:01:45]} 16. Rd1 {[%clk 0:01:53]}  Ra8 {[%clk 0:01:29]} 17. Qb5 {[%clk 0:01:50]}  Rfb8 {[%clk 0:01:11]} 18. Qe2 {[%clk 0:01:49]}  Qc5 {[%clk 0:01:07]} 19. Nxd5 {[%clk 0:01:33]}  Nxd5 {[%clk 0:00:32]} 20. e4 {[%clk 0:01:33]}  Bg4 {[%clk 0:00:31]} 21. Rxd5 {[%clk 0:01:28]}  Qb6 {[%clk 0:00:27]} 22. Be3 {[%clk 0:01:20]}  Qxb2 {[%clk 0:00:23]} 23. Qxb2 {[%clk 0:01:13]}  Rxb2 {[%clk 0:00:24]} 24. a4 {[%clk 0:01:13]}  Be6 {[%clk 0:00:20]} 25. Rc5 {[%clk 0:01:06]}  Nb4 {[%clk 0:00:14]} 26. Rb5 {[%clk 0:01:01]}  Bd7 {[%clk 0:00:13]} 27. Rb6 {[%clk 0:00:57]}  Rxa4 {[%clk 0:00:12]} 28. Rxa4 {[%clk 0:00:55]}  Bxa4 {[%clk 0:00:09]} 29. Rb8+ {[%clk 0:00:55]} 1-0


[Site "https://www.chess.com"]

[Event "Titled Tuesday Blitz June 8 2021"]
[White "Saravana, Krishnan P."]
[Black "Solon, Nathan"]
[WhiteFideId "5018382"]
[BlackFideId "2017229"]
[WhiteElo "2245"]
[BlackElo "2622"]
[Result "0-1"]
[Round "08"]
[TimeControl "180+1"]
[Date "2021.06.08"]
[WhiteClock "0:01:03"]
[BlackClock "0:00:13"]

1. e4 {[%clk 0:03:00]}  c5 {[%clk 0:02:59]} 2. Nf3 {[%clk 0:03:01]}  d6 {[%clk 0:03:00]} 3. Bb5+ {[%clk 0:03:00]}  Nd7 {[%clk 0:03:00]} 4. c3 {[%clk 0:02:56]}  Nf6 {[%clk 0:03:00]} 5. Qe2 {[%clk 0:02:54]}  a6 {[%clk 0:03:00]} 6. Ba4 {[%clk 0:02:54]}  b5 {[%clk 0:03:00]} 7. Bc2 {[%clk 0:02:54]}  Bb7 {[%clk 0:03:01]} 8. O-O {[%clk 0:02:53]}  g6 {[%clk 0:03:01]} 9. d4 {[%clk 0:02:52]}  Bg7 {[%clk 0:03:01]} 10. a4 {[%clk 0:02:51]}  O-O {[%clk 0:02:58]} 11. Na3 {[%clk 0:02:46]}  Qb6 {[%clk 0:02:18]} 12. Bg5 {[%clk 0:02:44]}  h6 {[%clk 0:02:17]} 13. Bh4 {[%clk 0:02:41]}  Rfe8 {[%clk 0:01:36]} 14. Rfd1 {[%clk 0:02:33]}  cxd4 {[%clk 0:01:31]} 15. cxd4 {[%clk 0:02:33]}  e5 {[%clk 0:01:31]} 16. d5 {[%clk 0:02:18]}  b4 {[%clk 0:01:03]} 17. Nc4 {[%clk 0:02:16]}  Qc7 {[%clk 0:01:03]} 18. a5 {[%clk 0:02:08]}  Nh5 {[%clk 0:01:02]} 19. Bg3 {[%clk 0:02:06]}  Rac8 {[%clk 0:00:48]} 20. Nfd2 {[%clk 0:02:03]}  Nf4 {[%clk 0:00:45]} 21. Qf1 {[%clk 0:01:57]}  Nc5 {[%clk 0:00:19]} 22. Nb6 {[%clk 0:01:55]}  Rb8 {[%clk 0:00:20]} 23. Ndc4 {[%clk 0:01:54]}  Qd8 {[%clk 0:00:17]} 24. f3 {[%clk 0:01:38]}  Bc8 {[%clk 0:00:16]} 25. Kh1 {[%clk 0:01:35]}  Bf8 {[%clk 0:00:16]} 26. Bf2 {[%clk 0:01:34]}  h5 {[%clk 0:00:15]} 27. Bxc5 {[%clk 0:01:30]}  dxc5 {[%clk 0:00:16]} 28. d6 {[%clk 0:01:30]}  Be6 {[%clk 0:00:14]} 29. d7 {[%clk 0:01:29]}  Re7 {[%clk 0:00:15]} 30. Nxe5 {[%clk 0:01:28]}  Qc7 {[%clk 0:00:13]} 31. d8=Q {[%clk 0:01:26]}  Rxd8 {[%clk 0:00:13]} 32. Rxd8 {[%clk 0:01:26]}  Qxd8 {[%clk 0:00:14]} 33. Nc6 {[%clk 0:01:26]}  Qc7 {[%clk 0:00:13]} 34. Nxe7+ {[%clk 0:01:26]}  Bxe7 {[%clk 0:00:14]} 35. Rd1 {[%clk 0:01:22]}  c4 {[%clk 0:00:15]} 36. g3 {[%clk 0:01:16]}  Bh3 {[%clk 0:00:14]} 37. Nd5 {[%clk 0:01:04]}  Bxf1 {[%clk 0:00:13]} 38. Nxc7 {[%clk 0:01:02]}  Bg2+ {[%clk 0:00:13]} 39. Kg1 {[%clk 0:01:03]}  Bc5+ {[%clk 0:00:13]} 0-1


[Site "https://www.chess.com"]

[Event "Titled Tuesday Blitz June 8 2021"]
[White "Shkapenko, Pavel"]
[Black "Politov, Pavel Y."]
[WhiteFideId "4151933"]
[BlackFideId "24110515"]
[WhiteElo "2386"]
[BlackElo "2090"]
[Result "1-0"]
[Round "08"]
[TimeControl "180+1"]
[Date "2021.06.08"]
[WhiteClock "0:00:58"]
[BlackClock "0:00:07"]

1. e4 {[%clk 0:03:00]}  e5 {[%clk 0:02:59]} 2. Nf3 {[%clk 0:03:00]}  Nf6 {[%clk 0:02:59]} 3. Nxe5 {[%clk 0:02:59]}  d6 {[%clk 0:03:00]} 4. Nf3 {[%clk 0:02:59]}  Nxe4 {[%clk 0:03:00]} 5. d3 {[%clk 0:03:00]}  Nf6 {[%clk 0:03:00]} 6. d4 {[%clk 0:03:00]}  Bg4 {[%clk 0:02:57]} 7. Bd3 {[%clk 0:02:59]}  Qe7+ {[%clk 0:02:55]} 8. Be3 {[%clk 0:02:58]}  Nd5 {[%clk 0:02:48]} 9. O-O {[%clk 0:02:56]}  Nxe3 {[%clk 0:02:48]} 10. fxe3 {[%clk 0:02:57]}  Qxe3+ {[%clk 0:00:50]} 11. Kh1 {[%clk 0:02:51]}  Be7 {[%clk 0:00:51]} 12. Nbd2 {[%clk 0:02:43]}  Nc6 {[%clk 0:00:44]} 13. Re1 {[%clk 0:02:23]}  Qh6 {[%clk 0:00:45]} 14. d5 {[%clk 0:02:24]}  Ne5 {[%clk 0:00:43]} 15. Bb5+ {[%clk 0:02:24]}  c6 {[%clk 0:00:40]} 16. dxc6 {[%clk 0:02:22]}  bxc6 {[%clk 0:00:41]} 17. Rxe5 {[%clk 0:02:17]}  dxe5 {[%clk 0:00:37]} 18. Bd3 {[%clk 0:01:58]}  O-O {[%clk 0:00:36]} 19. Qe1 {[%clk 0:01:58]}  Bd6 {[%clk 0:00:36]} 20. Ne4 {[%clk 0:01:52]}  Bxf3 {[%clk 0:00:33]} 21. gxf3 {[%clk 0:01:52]}  f5 {[%clk 0:00:33]} 22. Ng3 {[%clk 0:01:48]}  g6 {[%clk 0:00:20]} 23. Qc3 {[%clk 0:01:48]}  Rae8 {[%clk 0:00:17]} 24. Qxc6 {[%clk 0:01:46]}  Bb8 {[%clk 0:00:14]} 25. Bxf5 {[%clk 0:01:45]}  e4 {[%clk 0:00:14]} 26. Be6+ {[%clk 0:01:32]}  Kh8 {[%clk 0:00:14]} 27. Qc3+ {[%clk 0:01:31]}  Qg7 {[%clk 0:00:12]} 28. Qxg7+ {[%clk 0:01:30]}  Kxg7 {[%clk 0:00:13]} 29. Bd5 {[%clk 0:01:27]}  exf3 {[%clk 0:00:13]} 30. Rf1 {[%clk 0:01:28]}  Bxg3 {[%clk 0:00:13]} 31. hxg3 {[%clk 0:01:27]}  f2 {[%clk 0:00:14]} 32. Kg2 {[%clk 0:01:28]}  Re1 {[%clk 0:00:14]} 33. Rxf2 {[%clk 0:01:27]}  Rxf2+ {[%clk 0:00:15]} 34. Kxf2 {[%clk 0:01:28]}  Rc1 {[%clk 0:00:16]} 35. Be4 {[%clk 0:01:25]}  Rb1 {[%clk 0:00:17]} 36. b3 {[%clk 0:01:25]}  Rb2 {[%clk 0:00:17]} 37. a4 {[%clk 0:01:25]}  a5 {[%clk 0:00:17]} 38. Ke3 {[%clk 0:01:22]}  h5 {[%clk 0:00:18]} 39. Kd2 {[%clk 0:01:20]}  Rb1 {[%clk 0:00:16]} 40. Kc3 {[%clk 0:01:20]}  Rg1 {[%clk 0:00:16]} 41. Kc4 {[%clk 0:01:20]}  Rxg3 {[%clk 0:00:17]} 42. Kb5 {[%clk 0:01:21]}  Rg5+ {[%clk 0:00:16]} 43. Kb6 {[%clk 0:01:20]}  h4 {[%clk 0:00:17]} 44. c4 {[%clk 0:01:20]}  h3 {[%clk 0:00:17]} 45. c5 {[%clk 0:01:21]}  h2 {[%clk 0:00:17]} 46. c6 {[%clk 0:01:21]}  Re5 {[%clk 0:00:17]} 47. Bh1 {[%clk 0:01:17]}  Re1 {[%clk 0:00:17]} 48. c7 {[%clk 0:01:18]}  Rxh1 {[%clk 0:00:15]} 49. c8=Q {[%clk 0:01:17]}  Kh6 {[%clk 0:00:09]} 50. Qh8+ {[%clk 0:01:13]}  Kg5 {[%clk 0:00:09]} 51. Qe5+ {[%clk 0:01:14]}  Kh6 {[%clk 0:00:07]} 52. Kxa5 {[%clk 0:01:04]}  g5 {[%clk 0:00:07]} 53. Qe6+ {[%clk 0:00:58]}  Kh7 {[%clk 0:00:07]} 54. Qe4+ {[%clk 0:00:58]} 1-0


[Site "https://www.chess.com"]

[Event "Titled Tuesday Blitz June 8 2021"]
[White "Silich, Yahor"]
[Black "Nitish Belurkar"]
[WhiteFideId "13513656"]
[BlackFideId "5084768"]
[WhiteElo "2136"]
[BlackElo "2306"]
[Result "0-1"]
[Round "08"]
[TimeControl "180+1"]
[Date "2021.06.08"]
[WhiteClock "0:00:02"]
[BlackClock "0:00:28"]

1. e4 {[%clk 0:02:43]}  d5 {[%clk 0:02:58]} 2. exd5 {[%clk 0:02:43]}  Nf6 {[%clk 0:02:57]} 3. Nc3 {[%clk 0:02:44]}  Nxd5 {[%clk 0:02:57]} 4. Nf3 {[%clk 0:02:42]}  Bf5 {[%clk 0:02:57]} 5. Bc4 {[%clk 0:02:39]}  e6 {[%clk 0:02:55]} 6. O-O {[%clk 0:02:39]}  Nb6 {[%clk 0:02:54]} 7. Bb3 {[%clk 0:02:39]}  c5 {[%clk 0:02:55]} 8. d4 {[%clk 0:02:39]}  c4 {[%clk 0:02:55]} 9. Ba4+ {[%clk 0:02:39]}  Nxa4 {[%clk 0:02:55]} 10. Nxa4 {[%clk 0:02:40]}  Nc6 {[%clk 0:02:56]} 11. Bf4 {[%clk 0:02:37]}  Be7 {[%clk 0:02:55]} 12. Re1 {[%clk 0:02:35]}  O-O {[%clk 0:02:53]} 13. Nc5 {[%clk 0:02:35]}  b6 {[%clk 0:02:39]} 14. Ne4 {[%clk 0:02:34]}  Rc8 {[%clk 0:02:31]} 15. c3 {[%clk 0:02:32]}  b5 {[%clk 0:02:31]} 16. a3 {[%clk 0:02:30]}  a5 {[%clk 0:02:30]} 17. Qe2 {[%clk 0:02:24]}  Qd5 {[%clk 0:02:27]} 18. h3 {[%clk 0:02:20]}  b4 {[%clk 0:02:26]} 19. axb4 {[%clk 0:02:20]}  axb4 {[%clk 0:02:26]} 20. Ra6 {[%clk 0:02:18]}  Ra8 {[%clk 0:02:22]} 21. Rxa8 {[%clk 0:02:08]}  Rxa8 {[%clk 0:02:21]} 22. Nfd2 {[%clk 0:02:03]}  bxc3 {[%clk 0:02:09]} 23. bxc3 {[%clk 0:02:03]}  Ra2 {[%clk 0:02:04]} 24. Rb1 {[%clk 0:01:11]}  h6 {[%clk 0:01:47]} 25. Rc1 {[%clk 0:01:07]}  Na5 {[%clk 0:01:43]} 26. Qf3 {[%clk 0:01:01]}  Nb3 {[%clk 0:01:39]} 27. Re1 {[%clk 0:00:54]}  Rc2 {[%clk 0:01:31]} 28. Ng3 {[%clk 0:00:24]}  Qxf3 {[%clk 0:01:23]} 29. Nxf3 {[%clk 0:00:24]}  Bd3 {[%clk 0:01:23]} 30. d5 {[%clk 0:00:20]}  Bc5 {[%clk 0:01:21]} 31. dxe6 {[%clk 0:00:07]}  Bxf2+ {[%clk 0:01:21]} 32. Kh2 {[%clk 0:00:07]}  fxe6 {[%clk 0:00:47]} 33. Rxe6 {[%clk 0:00:07]}  Rxc3 {[%clk 0:00:41]} 34. Be5 {[%clk 0:00:07]}  Rc2 {[%clk 0:00:38]} 35. Re7 {[%clk 0:00:07]}  g5 {[%clk 0:00:36]} 36. Nh5 {[%clk 0:00:05]}  Nd2 {[%clk 0:00:30]} 37. Nf6+ {[%clk 0:00:05]}  Kf8 {[%clk 0:00:31]} 38. Nxd2 {[%clk 0:00:05]}  Kxe7 {[%clk 0:00:29]} 39. Nde4 {[%clk 0:00:01]}  Bxe4 {[%clk 0:00:27]} 40. Nxe4 {[%clk 0:00:02]}  Be3 {[%clk 0:00:28]} 41. Bf6+ {[%clk 0:00:02]}  Ke6 {[%clk 0:00:28]} 42. Bg7 {[%clk 0:00:02]}  Bf4+ {[%clk 0:00:28]} 43. Kg1 {[%clk 0:00:01]}  Rc1+ {[%clk 0:00:29]} 44. Kf2 {[%clk 0:00:02]}  Kf5 {[%clk 0:00:29]} 45. Nd6+ {[%clk 0:00:02]}  Bxd6 {[%clk 0:00:28]} 0-1


[Site "https://www.chess.com"]